Workbook

Sheet Лист1
A1: № квартиры | B1: Площадь | C1: Вопрос 1 | F1: Вопрос 2 | I1: Вопрос 3 | L1: Вопрос 4 | O1: Вопрос 5 | R1: Вопрос 6 | U1: Вопрос 7
C2: За | D2: Возд | E2: Против | F2: За | G2: Возд | H2: Против | I2: За | J2: Возд | K2: Против | L2: За | M2: Возд | N2: Против | O2: За | P2: Возд | Q2: Против | R2: За | S2: Возд | T2: Против | U2: За | V2: Возд | W2: Против
A3: 1 | B3: 67.52 | C3: 67.52 | D3: 0 | E3: 0 | F3: 67.52 | G3: 0 | H3: 0 | I3: 67.52 | J3: 0 | K3: 0 | L3: 67.52 | M3: 0 | N3: 0 | O3: 67.52 | P3: 0 | Q3: 0 | R3: 67.52 | S3: 0 | T3: 0 | U3: 67.52 | V3: 0 | W3: 0
A4: 2
A5: 3 | B5: 57.14
A6: 4 | B6: 91.45
A7: 5
A8: 6 | B8: 38.3
A9: 7 | B9: 57.26 | C9: 57.26 | D9: 0 | E9: 0 | F9: 57.26 | G9: 0 | H9: 0 | I9: 57.26 | J9: 0 | K9: 0 | L9: 57.26 | M9: 0 | N9: 0 | O9: 57.26 | P9: 0 | Q9: 0 | R9: 57.26 | S9: 0 | T9: 0 | U9: 57.26 | V9: 0 | W9: 0
A10: 8 | B10: 91.31
A11: 9 | B11: 67.8 | C11: 67.8 | D11: 0 | E11: 0 | F11: 67.8 | G11: 0 | H11: 0 | I11: 67.8 | J11: 0 | K11: 0 | L11: 67.8 | M11: 0 | N11: 0 | O11: 67.8 | P11: 0 | Q11: 0 | R11: 67.8 | S11: 0 | T11: 0 | U11: 67.8 | V11: 0 | W11: 0
A12: 10
A13: 11
A14: 12 | B14: 91.41
A15: 13 | B15: 67.91
A16: 14
A17: 15 | B17: 57.27 | C17: 57.27 | D17: 0 | E17: 0 | F17: 57.27 | G17: 0 | H17: 0 | I17: 0 | J17: 57.27 | K17: 0 | L17: 0 | M17: 57.27 | N17: 0 | O17: 57.27 | P17: 0 | Q17: 0 | R17: 57.27 | S17: 0 | T17: 0 | U17: 57.27 | V17: 0 | W17: 0
A18: 16 | B18: 82.377
A19: 16 | B19: 9.153
A20: 17 | B20: 68.28
A21: 18 | B21: 38.14
A22: 19 | B22: 57.2 | C22: 57.2 | D22: 0 | E22: 0 | F22: 57.2 | G22: 0 | H22: 0 | I22: 57.2 | J22: 0 | K22: 0 | L22: 57.2 | M22: 0 | N22: 0 | O22: 57.2 | P22: 0 | Q22: 0 | R22: 57.2 | S22: 0 | T22: 0 | U22: 57.2 | V22: 0 | W22: 0
A23: 20 | B23: 91.61 | C23: 91.61 | D23: 0 | E23: 0 | F23: 91.61 | G23: 0 | H23: 0 | I23: 91.61 | J23: 0 | K23: 0 | L23: 91.61 | M23: 0 | N23: 0 | O23: 91.61 | P23: 0 | Q23: 0 | R23: 91.61 | S23: 0 | T23: 0 | U23: 91.61 | V23: 0 | W23: 0
A24: 21 | B24: 68.12
A25: 22
A26: 23 | B26: 57.11 | C26: 57.11 | D26: 0 | E26: 0 | F26: 57.11 | G26: 0 | H26: 0 | I26: 57.11 | J26: 0 | K26: 0 | L26: 57.11 | M26: 0 | N26: 0 | O26: 57.11 | P26: 0 | Q26: 0 | R26: 57.11 | S26: 0 | T26: 0 | U26: 57.11 | V26: 0 | W26: 0
A27: 24
A28: 25 | B28: 68.26 | C28: 68.26 | D28: 0 | E28: 0 | F28: 68.26 | G28: 0 | H28: 0 | I28: 68.26 | J28: 0 | K28: 0 | L28: 68.26 | M28: 0 | N28: 0 | O28: 68.26 | P28: 0 | Q28: 0 | R28: 68.26 | S28: 0 | T28: 0 | U28: 68.26 | V28: 0 | W28: 0
A29: 26
A30: 27 | B30: 28.64
A31: 28 | B31: 99.3 | C31: 99.3 | D31: 0 | E31: 0 | F31: 99.3 | G31: 0 | H31: 0 | I31: 99.3 | J31: 0 | K31: 0 | L31: 99.3 | M31: 0 | N31: 0 | O31: 99.3 | P31: 0 | Q31: 0 | R31: 99.3 | S31: 0 | T31: 0 | U31: 99.3 | V31: 0 | W31: 0
A32: 29 | B32: 68.33 | C32: 68.33 | D32: 0 | E32: 0 | F32: 68.33 | G32: 0 | H32: 0 | I32: 68.33 | J32: 0 | K32: 0 | L32: 68.33 | M32: 0 | N32: 0 | O32: 68.33 | P32: 0 | Q32: 0 | R32: 68.33 | S32: 0 | T32: 0 | U32: 68.33 | V32: 0 | W32: 0
A33: 30 | B33: 38.09 | C33: 38.09 | D33: 0 | E33: 0 | F33: 38.09 | G33: 0 | H33: 0 | I33: 38.09 | J33: 0 | K33: 0 | L33: 38.09 | M33: 0 | N33: 0 | O33: 38.09 | P33: 0 | Q33: 0 | R33: 38.09 | S33: 0 | T33: 0 | U33: 38.09 | V33: 0 | W33: 0
A34: 31 | B34: 57.3 | C34: 57.3 | D34: 0 | E34: 0 | F34: 57.3 | G34: 0 | H34: 0 | I34: 57.3 | J34: 0 | K34: 0 | L34: 57.3 | M34: 0 | N34: 0 | O34: 57.3 | P34: 0 | Q34: 0 | R34: 57.3 | S34: 0 | T34: 0 | U34: 57.3 | V34: 0 | W34: 0
A35: 32
A36: 33 | B36: 67.79 | C36: 67.79 | D36: 0 | E36: 0 | F36: 67.79 | G36: 0 | H36: 0 | I36: 67.79 | J36: 0 | K36: 0 | L36: 67.79 | M36: 0 | N36: 0 | O36: 67.79 | P36: 0 | Q36: 0 | R36: 67.79 | S36: 0 | T36: 0 | U36: 67.79 | V36: 0 | W36: 0
A37: 34
A38: 35
A39: 36
A40: 37 | B40: 66.99 | C40: 66.99 | D40: 0 | E40: 0 | F40: 66.99 | G40: 0 | H40: 0 | I40: 66.99 | J40: 0 | K40: 0 | L40: 66.99 | M40: 0 | N40: 0 | O40: 66.99 | P40: 0 | Q40: 0 | R40: 66.99 | S40: 0 | T40: 0 | U40: 66.99 | V40: 0 | W40: 0
A41: 38
A42: 39
A43: 40
A44: 41 | B44: 67.78 | C44: 67.78 | D44: 0 | E44: 0 | F44: 67.78 | G44: 0 | H44: 0 | I44: 0 | J44: 0 | K44: 67.78 | L44: 67.78 | M44: 0 | N44: 0 | O44: 67.78 | P44: 0 | Q44: 0 | R44: 67.78 | S44: 0 | T44: 0 | U44: 67.78 | V44: 0 | W44: 0
A45: 42 | B45: 38.13
A46: 43 | B46: 19.1
A47: 43 | B47: 19.1
A48: 43 | B48: 19.1
A49: 44 | B49: 91.87 | C49: 0 | D49: 91.87 | E49: 0 | F49: 0 | G49: 91.87 | H49: 0 | I49: 0 | J49: 91.87 | K49: 0 | L49: 0 | M49: 91.87 | N49: 0 | O49: 0 | P49: 91.87 | Q49: 0 | R49: 0 | S49: 91.87 | T49: 0 | U49: 0 | V49: 91.87 | W49: 0
A50: 45 | B50: 67.66 | C50: 0 | D50: 67.66 | E50: 0 | F50: 0 | G50: 67.66 | H50: 0 | I50: 0 | J50: 67.66 | K50: 0 | L50: 0 | M50: 67.66 | N50: 0 | O50: 0 | P50: 67.66 | Q50: 0 | R50: 0 | S50: 67.66 | T50: 0 | U50: 0 | V50: 67.66 | W50: 0
A51: 46 | B51: 38.1 | C51: 38.1 | D51: 0 | E51: 0 | F51: 38.1 | G51: 0 | H51: 0 | I51: 38.1 | J51: 0 | K51: 0 | L51: 38.1 | M51: 0 | N51: 0 | O51: 38.1 | P51: 0 | Q51: 0 | R51: 38.1 | S51: 0 | T51: 0 | U51: 38.1 | V51: 0 | W51: 0
A52: 47 | B52: 57.4 | C52: 0 | D52: 57.4 | E52: 0 | F52: 0 | G52: 57.4 | H52: 0 | I52: 0 | J52: 57.4 | K52: 0 | L52: 0 | M52: 57.4 | N52: 0 | O52: 0 | P52: 57.4 | Q52: 0 | R52: 0 | S52: 57.4 | T52: 0 | U52: 0 | V52: 57.4 | W52: 0
A53: 48
A54: 49 | B54: 67.57 | C54: 67.57 | D54: 0 | E54: 0 | F54: 67.57 | G54: 0 | H54: 0 | I54: 67.57 | J54: 0 | K54: 0 | L54: 67.57 | M54: 0 | N54: 0 | O54: 67.57 | P54: 0 | Q54: 0 | R54: 67.57 | S54: 0 | T54: 0 | U54: 67.57 | V54: 0 | W54: 0
A55: 50 | B55: 19.08 | C55: 19.08 | D55: 0 | E55: 0 | F55: 19.08 | G55: 0 | H55: 0 | I55: 19.08 | J55: 0 | K55: 0 | L55: 19.08 | M55: 0 | N55: 0 | O55: 19.08 | P55: 0 | Q55: 0 | R55: 19.08 | S55: 0 | T55: 0 | U55: 19.08 | V55: 0 | W55: 0
A56: 51 | B56: 57.4 | D56: 0 | E56: 0 | G56: 0 | H56: 0 | J56: 0 | K56: 0 | M56: 0 | N56: 0 | P56: 0 | Q56: 0 | S56: 0 | T56: 0 | V56: 0 | W56: 0
A57: 52 | B57: 91.6 | C57: 91.6 | D57: 0 | E57: 0 | F57: 91.6 | G57: 0 | H57: 0 | I57: 91.6 | J57: 0 | K57: 0 | L57: 91.6 | M57: 0 | N57: 0 | O57: 91.6 | P57: 0 | Q57: 0 | R57: 91.6 | S57: 0 | T57: 0 | U57: 91.6 | V57: 0 | W57: 0
A58: 53 | B58: 11.253 | C58: 11.253 | D58: 0 | E58: 0 | F58: 0 | G58: 11.253 | H58: 0 | I58: 0 | J58: 11.253 | K58: 0 | L58: 0 | M58: 11.253 | N58: 0 | O58: 0 | P58: 11.253 | Q58: 0 | R58: 0 | S58: 11.253 | T58: 0 | U58: 0 | V58: 11.253 | W58: 0
A59: 53 | B59: 56.267
A60: 54 | B60: 38.18 | C60: 38.18 | D60: 0 | E60: 0 | F60: 38.18 | G60: 0 | H60: 0 | I60: 38.18 | J60: 0 | K60: 0 | L60: 38.18 | M60: 0 | N60: 0 | O60: 38.18 | P60: 0 | Q60: 0 | R60: 38.18 | S60: 0 | T60: 0 | U60: 38.18 | V60: 0 | W60: 0
A61: 55 | B61: 57.49 | C61: 57.49 | D61: 0 | E61: 0 | F61: 57.49 | G61: 0 | H61: 0 | I61: 57.49 | J61: 0 | K61: 0 | L61: 57.49 | M61: 0 | N61: 0 | O61: 57.49 | P61: 0 | Q61: 0 | R61: 57.49 | S61: 0 | T61: 0 | U61: 57.49 | V61: 0 | W61: 0
A62: 56 | B62: 91.68
A63: 57 | B63: 67.7
A64: 58
A65: 59 | B65: 38.27 | C65: 0 | D65: 38.27 | E65: 0 | F65: 0 | G65: 38.27 | H65: 0 | I65: 38.27 | J65: 0 | K65: 0 | L65: 38.27 | M65: 0 | N65: 0 | O65: 38.27 | P65: 0 | Q65: 0 | R65: 38.27 | S65: 0 | T65: 0 | U65: 0 | V65: 38.27 | W65: 0
A66: 60 | B66: 63.4
A67: 61 | B67: 82.72
A68: 62
A69: 63 | B69: 38.3 | F69: 38.3 | G69: 0 | H69: 0 | I69: 38.3 | J69: 0 | K69: 0 | L69: 38.3 | M69: 0 | N69: 0 | O69: 38.3 | P69: 0 | Q69: 0 | R69: 38.3 | S69: 0 | T69: 0 | U69: 38.3 | V69: 0 | W69: 0
A70: 64 | B70: 38.52
A71: 65 | B71: 62.96
A72: 66
A73: 67
A74: 68 | B74: 38.26
A75: 69
A76: 70
A77: 71
A78: 72 | B78: 67.4 | C78: 67.4 | D78: 0 | E78: 0 | F78: 67.4 | G78: 0 | H78: 0 | I78: 67.4 | J78: 0 | K78: 0 | L78: 67.4 | M78: 0 | N78: 0 | O78: 67.4 | P78: 0 | Q78: 0 | R78: 67.4 | S78: 0 | T78: 0 | U78: 67.4 | V78: 0 | W78: 0
A79: 73
A80: 74
A81: 75
A82: 76
A83: 77 | B83: 67.52 | C83: 67.52 | D83: 0 | E83: 0 | F83: 67.52 | G83: 0 | H83: 0 | I83: 0 | J83: 67.52 | K83: 0 | L83: 0 | M83: 67.52 | N83: 0 | O83: 67.52 | P83: 0 | Q83: 0 | R83: 67.52 | S83: 0 | T83: 0 | U83: 67.52 | V83: 0 | W83: 0
A84: 78 | B84: 38.24
A85: 79
A86: 80 | B86: 63.24
A87: 81
A88: 82 | B88: 67.47 | C88: 67.47 | D88: 0 | E88: 0 | F88: 67.47 | G88: 0 | H88: 0 | I88: 67.47 | J88: 0 | K88: 0 | L88: 67.47 | M88: 0 | N88: 0 | O88: 67.47 | P88: 0 | Q88: 0 | R88: 67.47 | S88: 0 | T88: 0 | U88: 67.47 | V88: 0 | W88: 0
A89: 83
A90: 84 | B90: 38.17
A91: 85 | B91: 63.01 | C91: 63.01 | D91: 0 | E91: 0 | F91: 63.01 | G91: 0 | H91: 0 | I91: 63.01 | J91: 0 | K91: 0 | L91: 63.01 | M91: 0 | N91: 0 | O91: 63.01 | P91: 0 | Q91: 0 | R91: 63.01 | S91: 0 | T91: 0 | U91: 63.01 | V91: 0 | W91: 0
A92: 86 | B92: 82.44
A93: 87
A94: 88
A95: 89
A96: 90
A97: 91 | B97: 82.45 | C97: 82.45 | D97: 0 | E97: 0 | F97: 82.45 | G97: 0 | H97: 0 | I97: 82.45 | J97: 0 | K97: 0 | L97: 82.45 | M97: 0 | N97: 0 | O97: 82.45 | P97: 0 | Q97: 0 | R97: 82.45 | S97: 0 | T97: 0 | U97: 82.45 | V97: 0 | W97: 0
A98: 92
A99: 93
A100: 94
A101: 95 | B101: 63.02
A102: 96 | B102: 41.26
A103: 97 | B103: 67.6 | C103: 67.6 | D103: 0 | E103: 0 | F103: 67.6 | G103: 0 | H103: 0 | I103: 67.6 | J103: 0 | K103: 0 | L103: 67.6 | M103: 0 | N103: 0 | O103: 67.6 | P103: 0 | Q103: 0 | R103: 67.6 | S103: 0 | T103: 0 | U103: 67.6 | V103: 0 | W103: 0
A104: 98
A105: 99 | B105: 38.13
A106: 100 | B106: 63.41
A107: 101 | B107: 82.6
A108: 102 | B108: 67.42 | C108: 67.42 | D108: 0 | E108: 0 | F108: 67.42 | G108: 0 | H108: 0 | I108: 67.42 | J108: 0 | K108: 0 | L108: 67.42 | M108: 0 | N108: 0 | O108: 67.42 | P108: 0 | Q108: 0 | R108: 67.42 | S108: 0 | T108: 0 | U108: 67.42 | V108: 0 | W108: 0
A109: 103 | B109: 38.2 | C109: 38.2 | D109: 0 | E109: 0 | F109: 38.2 | G109: 0 | H109: 0 | I109: 38.2 | J109: 0 | K109: 0 | L109: 38.2 | M109: 0 | N109: 0 | O109: 38.2 | P109: 0 | Q109: 0 | R109: 38.2 | S109: 0 | T109: 0 | U109: 38.2 | V109: 0 | W109: 0
A110: 104
A111: 105 | B111: 63.19 | C111: 63.19 | D111: 0 | E111: 0 | F111: 63.19 | G111: 0 | H111: 0 | I111: 63.19 | J111: 0 | K111: 0 | L111: 63.19 | M111: 0 | N111: 0 | O111: 63.19 | P111: 0 | Q111: 0 | R111: 63.19 | S111: 0 | T111: 0 | U111: 63.19 | V111: 0 | W111: 0
A112: 106
A113: 107 | B113: 67.43
A114: 108 | B114: 38.16
A115: 109 | B115: 38.2 | G115: 0 | H115: 0
A116: 110 | B116: 31.63 | C116: 31.63 | D116: 0 | E116: 0 | F116: 31.63 | G116: 0 | H116: 0 | I116: 31.63 | J116: 0 | K116: 0 | L116: 31.63 | M116: 0 | N116: 0 | O116: 31.63 | P116: 0 | Q116: 0 | R116: 31.63 | S116: 0 | T116: 0 | U116: 31.63 | V116: 0 | W116: 0
A117: 110 | B117: 31.63 | C117: 31.63 | D117: 0 | E117: 0 | F117: 31.63 | G117: 0 | H117: 0 | I117: 31.63 | J117: 0 | K117: 0 | L117: 31.63 | M117: 0 | N117: 0 | O117: 31.63 | P117: 0 | Q117: 0 | R117: 31.63 | S117: 0 | T117: 0 | U117: 31.63 | V117: 0 | W117: 0
A118: 111 | B118: 82.61 | C118: 0 | D118: 82.61 | E118: 0 | F118: 0 | G118: 82.61 | H118: 0 | I118: 0 | J118: 0 | K118: 82.61 | L118: 0 | M118: 0 | N118: 82.61 | O118: 0 | P118: 82.61 | Q118: 0 | R118: 0 | S118: 82.61 | T118: 0 | U118: 0 | V118: 82.61 | W118: 0
A119: 112 | B119: 67.59 | M119: 0 | N119: 0
A120: 113
A121: 114 | B121: 38.09 | C121: 38.09 | D121: 0 | E121: 0 | F121: 38.09 | G121: 0 | H121: 0 | I121: 38.09 | J121: 0 | K121: 0 | L121: 38.09 | M121: 0 | N121: 0 | O121: 38.09 | P121: 0 | Q121: 0 | R121: 38.09 | S121: 0 | T121: 0 | U121: 38.09 | V121: 0 | W121: 0
A122: 115
A123: 116 | B123: 83.02 | C123: 83.02 | D123: 0 | E123: 0 | F123: 83.02 | G123: 0 | H123: 0 | I123: 83.02 | J123: 0 | K123: 0 | L123: 83.02 | M123: 0 | N123: 0 | O123: 83.02 | P123: 0 | Q123: 0 | R123: 83.02 | S123: 0 | T123: 0 | U123: 83.02 | V123: 0 | W123: 0
A124: 117
A125: 118 | B125: 38.29 | C125: 38.29 | D125: 0 | E125: 0 | F125: 38.29 | G125: 0 | H125: 0 | I125: 38.29 | J125: 0 | K125: 0 | L125: 38.29 | M125: 0 | N125: 0 | O125: 38.29 | P125: 0 | Q125: 0 | R125: 38.29 | S125: 0 | T125: 0 | U125: 38.29 | V125: 0 | W125: 0
A126: 119
A127: 120 | B127: 63.14 | C127: 63.14 | D127: 0 | E127: 0 | F127: 63.14 | G127: 0 | H127: 0 | I127: 63.14 | J127: 0 | K127: 0 | L127: 63.14 | M127: 0 | N127: 0 | O127: 63.14 | P127: 0 | Q127: 0 | R127: 63.14 | S127: 0 | T127: 0 | U127: 63.14 | V127: 0 | W127: 0
A128: 121 | B128: 82.42 | C128: 82.42 | D128: 0 | E128: 0 | F128: 82.42 | G128: 0 | H128: 0 | I128: 82.42 | J128: 0 | K128: 0 | L128: 82.42 | M128: 0 | N128: 0 | O128: 82.42 | P128: 0 | Q128: 0 | R128: 82.42 | S128: 0 | T128: 0 | U128: 82.42 | V128: 0 | W128: 0
A129: 122
A130: 123
A131: 124 | B131: 57.16
A132: 125
A133: 126 | B133: 67.47 | C133: 67.47 | D133: 0 | E133: 0 | F133: 67.47 | G133: 0 | H133: 0 | I133: 67.47 | J133: 0 | K133: 0 | L133: 67.47 | M133: 0 | N133: 0 | O133: 67.47 | P133: 0 | Q133: 0 | R133: 67.47 | S133: 0 | T133: 0 | U133: 67.47 | V133: 0 | W133: 0
A134: 127
A135: 128 | B135: 57.3
A136: 129
A137: 130 | B137: 67.45 | C137: 67.45 | D137: 0 | E137: 0 | F137: 67.45 | G137: 0 | H137: 0 | I137: 67.45 | J137: 0 | K137: 0 | L137: 67.45 | M137: 0 | N137: 0 | O137: 67.45 | P137: 0 | Q137: 0 | R137: 67.45 | S137: 0 | T137: 0 | U137: 67.45 | V137: 0 | W137: 0
A138: 131
A139: 132 | B139: 57.24
A140: 133 | B140: 91.62
A141: 134
A142: 135
A143: 136 | B143: 57.17 | C143: 57.17 | D143: 0 | E143: 0 | F143: 57.17 | G143: 0 | H143: 0 | I143: 57.17 | J143: 0 | K143: 0 | L143: 57.17 | M143: 0 | N143: 0 | O143: 57.17 | P143: 0 | Q143: 0 | R143: 57.17 | S143: 0 | T143: 0 | U143: 57.17 | V143: 0 | W143: 0
A144: 137
A145: 138
A146: 139
A147: 140 | B147: 57.28 | C147: 57.28 | D147: 0 | E147: 0 | F147: 57.28 | G147: 0 | H147: 0 | I147: 57.28 | J147: 0 | K147: 0 | L147: 57.28 | M147: 0 | N147: 0 | O147: 57.28 | P147: 0 | Q147: 0 | R147: 57.28 | S147: 0 | T147: 0 | U147: 57.28 | V147: 0 | W147: 0
A148: 141 | B148: 91.49 | C148: 91.49 | D148: 0 | E148: 0 | F148: 0 | G148: 91.49 | H148: 0 | I148: 0 | J148: 0 | K148: 91.49 | L148: 0 | M148: 0 | N148: 91.49 | O148: 0 | P148: 0 | Q148: 91.49 | R148: 0 | S148: 0 | T148: 91.49 | U148: 0 | V148: 91.49 | W148: 0
A149: 142 | B149: 67.64 | C149: 0 | D149: 67.64 | E149: 0 | F149: 0 | G149: 67.64 | H149: 0 | I149: 0 | J149: 67.64 | K149: 0 | L149: 0 | M149: 67.64 | N149: 0 | O149: 0 | P149: 67.64 | Q149: 0 | R149: 0 | S149: 67.64 | T149: 0 | U149: 0 | V149: 67.64 | W149: 0
A150: 143 | B150: 38.23
A151: 144 | B151: 57.22 | C151: 57.22 | D151: 0 | E151: 0 | F151: 57.22 | G151: 0 | H151: 0 | I151: 57.22 | J151: 0 | K151: 0 | L151: 57.22 | M151: 0 | N151: 0 | O151: 57.22 | P151: 0 | Q151: 0 | R151: 57.22 | S151: 0 | T151: 0 | U151: 57.22 | V151: 0 | W151: 0
A152: 145
A153: 146 | B153: 67.42
A154: 147
A155: 148
A156: 149 | B156: 91.37 | C156: 91.37 | D156: 0 | E156: 0 | F156: 91.37 | G156: 0 | H156: 0 | I156: 0 | J156: 91.37 | K156: 0 | L156: 0 | M156: 91.37 | N156: 0 | O156: 0 | P156: 91.37 | Q156: 0 | R156: 91.37 | S156: 0 | T156: 0 | U156: 0 | V156: 91.37 | W156: 0
A157: 150 | B157: 67.58 | C157: 67.58 | D157: 0 | E157: 0 | F157: 67.58 | G157: 0 | H157: 0 | I157: 67.58 | J157: 0 | K157: 0 | L157: 67.58 | M157: 0 | N157: 0 | O157: 67.58 | P157: 0 | Q157: 0 | R157: 67.58 | S157: 0 | T157: 0 | U157: 67.58 | V157: 0 | W157: 0
A158: 151 | B158: 38.17
A159: 152 | B159: 57.28 | C159: 57.28 | D159: 0 | E159: 0 | F159: 57.28 | G159: 0 | H159: 0 | I159: 57.28 | J159: 0 | K159: 0 | L159: 57.28 | M159: 0 | N159: 0 | O159: 57.28 | P159: 0 | Q159: 0 | R159: 57.28 | S159: 0 | T159: 0 | U159: 57.28 | V159: 0 | W159: 0
A160: 153
A161: 154 | B161: 67.65 | C161: 67.65 | D161: 0 | E161: 0 | F161: 67.65 | G161: 0 | H161: 0 | I161: 67.65 | J161: 0 | K161: 0 | L161: 67.65 | M161: 0 | N161: 0 | O161: 67.65 | P161: 0 | Q161: 0 | R161: 67.65 | S161: 0 | T161: 0 | U161: 67.65 | V161: 0 | W161: 0
A162: 155 | B162: 38.11 | C162: 38.11 | D162: 0 | E162: 0 | F162: 38.11 | G162: 0 | H162: 0 | I162: 38.11 | J162: 0 | K162: 0 | L162: 38.11 | M162: 0 | N162: 0 | O162: 38.11 | P162: 0 | Q162: 0 | R162: 38.11 | S162: 0 | T162: 0 | U162: 38.11 | V162: 0 | W162: 0
A163: 156 | B163: 29.8
A164: 157 | B164: 68.5275 | C164: 68.5275 | D164: 0 | E164: 0 | F164: 68.5275 | G164: 0 | H164: 0 | I164: 68.5275 | J164: 0 | K164: 0 | L164: 68.5275 | M164: 0 | N164: 0 | O164: 68.5275 | P164: 0 | Q164: 0 | U164: 68.5275 | V164: 0 | W164: 0
A165: 157 | B165: 22.8425
A166: 158
A167: 159
A168: 160 | B168: 57.47 | C168: 0 | D168: 57.47 | E168: 0 | F168: 0 | G168: 57.47 | H168: 0 | I168: 0 | J168: 57.47 | K168: 0 | L168: 0 | M168: 57.47 | N168: 0 | O168: 0 | P168: 57.47 | Q168: 0 | R168: 0 | S168: 57.47 | T168: 0 | U168: 0 | V168: 57.47 | W168: 0
A169: 161 | B169: 91.35
A170: 162 | B170: 67.57
A171: 163 | B171: 38.22
A172: 164
A173: 165
A174: 166 | B174: 67.54
A175: 167 | B175: 38.2
A176: 168 | B176: 38.213 | C176: 38.213 | D176: 0 | E176: 0 | F176: 38.213 | G176: 0 | H176: 0 | I176: 38.213 | J176: 0 | K176: 0 | L176: 38.213 | M176: 0 | N176: 0 | O176: 38.213 | P176: 0 | Q176: 0 | R176: 38.213 | S176: 0 | T176: 0 | U176: 38.213 | V176: 0 | W176: 0
A177: 168 | B177: 19.107 | C177: 19.107 | D177: 0 | E177: 0 | F177: 19.107 | G177: 0 | H177: 0 | I177: 19.107 | J177: 0 | K177: 0 | L177: 19.107 | M177: 0 | N177: 0 | O177: 19.107 | P177: 0 | Q177: 0 | R177: 19.107 | S177: 0 | T177: 0 | U177: 19.107 | V177: 0 | W177: 0
A178: 169 | B178: 91.12
A179: 170
A180: 171 | B180: 37.8
A181: 172
A182: 173 | B182: 91.5 | C182: 91.5 | D182: 0 | E182: 0 | F182: 91.5 | G182: 0 | H182: 0 | I182: 91.5 | J182: 0 | K182: 0 | L182: 91.5 | M182: 0 | N182: 0 | O182: 91.5 | P182: 0 | Q182: 0 | R182: 91.5 | S182: 0 | T182: 0 | U182: 91.5 | V182: 0 | W182: 0
A183: цок. 9 | B183: 19.4 | C183: 19.4 | D183: 0 | E183: 0 | F183: 19.4 | G183: 0 | H183: 0 | I183: 19.4 | J183: 0 | K183: 0 | L183: 19.4 | M183: 0 | N183: 0 | O183: 19.4 | P183: 0 | Q183: 0 | R183: 19.4 | S183: 0 | T183: 0 | U183: 19.4 | V183: 0 | W183: 0
A184: цок. 31 | B184: 9.7
A185: цок. 31 | B185: 9.7 | D185: 0 | E185: 0 | J185: 0 | K185: 0 | P185: 0 | Q185: 0 | S185: 0 | T185: 0
A186: цок. 34 | B186: 19.4 | C186: 19.4 | D186: 0 | E186: 0 | F186: 19.4 | G186: 0 | H186: 0 | I186: 19.4 | J186: 0 | K186: 0 | L186: 19.4 | M186: 0 | N186: 0 | O186: 19.4 | P186: 0 | Q186: 0 | R186: 19.4 | S186: 0 | T186: 0 | U186: 19.4 | V186: 0 | W186: 0
A187: цок. 51 | B187: 14.62 | C187: 14.62 | D187: 0 | E187: 0 | F187: 14.62 | G187: 0 | H187: 0 | I187: 14.62 | J187: 0 | K187: 0 | L187: 14.62 | M187: 0 | N187: 0 | O187: 14.62 | P187: 0 | Q187: 0 | R187: 14.62 | S187: 0 | T187: 0 | U187: 14.62 | V187: 0 | W187: 0
A188: цок. 503 | B188: 19.43 | D188: 0 | E188: 0 | J188: 0 | K188: 0 | P188: 0 | Q188: 0 | S188: 0 | T188: 0
A189: S тсж: | B189: =SUM(B3:B188) -> 6796.29 | C189: =SUM(C3:C188) -> 3256.2005 | D189: 462.92 | E189: 0 | F189: 3191.7575 | G189: 565.663 | H189: 0 | I189: =SUM(I3:I188) -> 2946.0875 | J189: =SUM(J3:J188) -> 569.453 | K189: =SUM(K3:K188) -> 241.88 | L189: =SUM(L3:L188) -> 3013.8675 | M189: =SUM(M3:M188) -> 569.453 | N189: =SUM(N3:N188) -> 174.1 | O189: =SUM(O3:O188) -> 3138.6575 | P189: =SUM(P3:P188) -> 527.273 | Q189: =SUM(Q3:Q188) -> 91.49 | R189: =SUM(R3:R188) -> 3161.5 | S189: =SUM(S3:S188) -> 435.903 | T189: =SUM(T3:T188) -> 91.49 | U189: =SUM(U3:U188) -> 3100.3875 | V189: =SUM(V3:V188) -> 657.033 | W189: =SUM(W3:W188) -> 0
A190: S голосовали | C190: =SUM(C189:E189) -> 3719.1205 | F190: =SUM(F189:H189) -> 3757.4205 | I190: =SUM(I189:K189) -> 3757.4205 | L190: =SUM(L189:N189) -> 3757.4205 | O190: =SUM(O189:Q189) -> 3757.4205 | R190: =SUM(R189:T189) -> 3688.893 | U190: =SUM(U189:W189) -> 3757.4205
A191: Процент | C191: =100*C189/C190 -> 87.55297119 | D191: =100*D189/C190 -> 12.44702881 | E191: =100*E189/C190 -> 0 | F191: =100*F189/F190 -> 84.94544329 | G191: =100*G189/F190 -> 15.05455671 | H191: =100*H189/F190 -> 0 | I191: =100*I189/I190 -> 78.4071812 | J191: =100*J189/I190 -> 15.15542378 | K191: =100*K189/I190 -> 6.437395016 | L191: =100*L189/L190 -> 80.21107832 | M191: =100*M189/L190 -> 15.15542378 | N191: =100*N189/L190 -> 4.633497901 | O191: =100*O189/O190 -> 83.53223974 | P191: =100*P189/O190 -> 14.03284514 | Q191: =100*Q189/O190 -> 2.434915123 | R191: =100*R189/R190 -> 85.70321774 | S191: =100*S189/R190 -> 11.81663442 | T191: =100*T189/R190 -> 2.480147838 | U191: =100*U189/U190 -> 82.51372185 | V191: =100*V189/U190 -> 17.48627815 | W191: =100*W189/U190 -> 0
A192: Процент участия | C192: =100*C190/B189 -> 54.72280465 | F192: =100*F190/B189 -> 55.2863474 | I192: =100*I190/B189 -> 55.2863474 | L192: =100*L190/B189 -> 55.2863474 | O192: =100*O190/B189 -> 55.2863474 | R192: =100*R190/B189 -> 54.27803993 | U192: =100*U190/B189 -> 55.2863474
A193: S дома | B193: 12191.83

Sheet Порядок заполнения
A1: Для заполнения таблицы необходимо установить любой символ в ячейках, соответствующих квартире и номеру вопроса. При этом программа автоматически подставляет размер площади текущей квартиры. По данному вопросу альтернативные варианты голоса (ЗА/ВОЗДЕРЖАЛСЯ/ПРОТИВ) сразу обнуляются.

Sheet Лист3
